Cogmind - Beta 15 @@@ ROGUE MODE // 2025.05.26 @ 14:01:25 Player: Bbenedict8 Result: Self-destructed Performance ------------- Evolutions (1) 500 Regions Visited (2) 400 Robots Destroyed (19) 95 Value Destroyed (421) 421 Prototype IDs (4) 80 Alien Tech Used (0) 0 Bonus (0) 0 TOTAL SCORE: 1496 Bonus ------- None Cogmind --------- Core Integrity 350/400 Matter 137/300 Energy 265/265 System Corruption 0% Temperature Cool (57) Movement Treading (170) Location -9/Materials Parts ------- > --- POWER (1) -------- Improved Ion Engine > --- PROPULSION (2) --- Armored Treads Armored Treads > --- UTILITY (2) ------ Large Storage Unit Visual Processing Unit > --- WEAPON (4) ------- EM Pulse Gun Particle Gun Assault Rifle Assault Rifle > --- INVENTORY (15) --- Ion Engine Armored Treads Armored Treads Wheel Wheel Compact Matter Pod (0) Improved Terrain Scanner Seismic Detector Tractor Beam Field Recycling Unit (71) Assault Rifle Assault Rifle Rocket Launcher Peak State ------------ > --- POWER ------------ Improved Ion Engine > --- PROPULSION ------- Armored Treads Armored Treads > --- UTILITY ---------- Large Storage Unit Visual Processing Unit > --- WEAPON ----------- EM Pulse Gun Particle Gun Assault Rifle Assault Rifle > --- INVENTORY -------- Ion Engine Armored Treads Armored Treads Wheel Wheel Compact Matter Pod Improved Terrain Scanner Seismic Detector Tractor Beam Field Recycling Unit Assault Rifle Assault Rifle Rocket Launcher [Rating: 18] Favorites ----------- Power Improved Ion Engine Engine Improved Ion Engine Propulsion Wheel Treads Armored Treads Wheel Wheel Utility Large Storage Unit Device Seismic Detector Storage Large Storage Unit Processor Visual Processing Unit Weapon Medium Laser Energy Gun Medium Laser Ballistic Gun Assault Rifle Launcher Grenade Launcher Build | -11 -10 -9 ------- Run | Yrd Mat Mat Slots Evolved 2 | . . 2 Power . | . . . Propulsion . | . . . Utility . | . . . Weapon 2 | . . 2 Parts Attached 24 | 7 13 4 Power 2 | 1 1 . Engine 2 | 1 1 . Core . | . . . Reactor . | . . . Propulsion 8 | 2 4 2 Treads 2 | . . 2 Leg . | . . . Wheel 6 | 2 4 . Hover . | . . . Flight . | . . . Utility 5 | 2 3 . Device 2 | 1 1 . Storage 2 | 1 1 . Processor 1 | . 1 . Hackware . | . . . Protection . | . . . Artifact . | . . . Weapon 9 | 2 5 2 Energy Gun 3 | 1 1 1 Energy Cannon . | . . . Ballistic Gun 5 | 1 3 1 Ballistic Cannon . | . . . Launcher 1 | . 1 . Special Weapon . | . . . Impact Weapon . | . . . Slashing Weapon . | . . . Piercing Weapon . | . . . Special Melee Weapon . | . . . Unidentified Prototypes . | . . . Parts Lost . | . . . Power . | . . . Propulsion . | . . . Utility . | . . . Weapon . | . . . Highest Loss Streak . | . . . To Critical Strikes . | . . . Average Backups 11 | 2 11 14 Power . | . 1 1 Propulsion 3 | 1 3 4 Utility 2 | . 2 4 Weapon 4 | . 4 4 Tool/Special . | . . . Unused Backups 16 | . 3 13 Power 1 | . . 1 Propulsion 6 | . 1 5 Utility 5 | . 1 4 Weapon 4 | . 1 3 Tool/Special . | . . . Average Slot Usage (%) 97 | . 100 82 Engine 13 | . 14 11 Treads 1 | . . 10 Wheel 25 | . 28 10 Device 10 | . 12 . Storage 13 | . 14 11 Processor 2 | . 1 11 Energy Gun 14 | . 14 14 Ballistic Gun 9 | . 8 15 Launcher 4 | . 5 . Peak Build Rating 18 | 7 11 18 Average Rating 9 | 5 8 14 On Entrance 6 | . 7 11 Naked Turns . | . . . Heaviest Build 36 | 12 33 36 Greatest Support 40 | 20 26 40 Greatest Overweight (x) 1 | . 1 1 Average Overweight (x) . | . . . Largest Inventory Capacity 15 | 8 15 15 Average Capacity 13 | 7 13 15 Most Carried 15 | 5 15 15 Average Carried 11 | 2 11 14 Final Capacity 15 | 8 15 15 Final Carried 15 | 5 15 13 Class Distribution -------------------- 94% | Mutant 5% | Skirmisher Dominant Class ---------------- Mutant | -10/Materials Skirmisher | -9/Materials Resources | -11 -10 -9 ----------- Run | Yrd Mat Mat Matter Collected 522 | 185 288 49 Remotely . | . . . Salvage Created 563 | 93 421 49 Parts 32 | 4 27 1 Haulers Intercepted 1 | . 1 . Recyclers Shooed 3 | 1 2 . Parts Field Recycled 8 | . 8 . Retrieved Matter 88 | . 88 . Parts Self-Destructed . | . . . Prevented . | . . . Kills | -11 -10 -9 ------- Run | Yrd Mat Mat Combat Hostiles Destroyed 8 | . 7 1 Guns 2 | . 1 1 AOE 6 | . 6 . Classes Destroyed 7 | 2 4 1 Worker 3 | . 3 . Tunneler 2 | 2 . . Hauler 1 | . 1 . Recycler 3 | 1 2 . Watcher 2 | . 2 . Grunt 7 | . 7 . Sentry 1 | . . 1 Best Kill Streak 4 | 3 4 1 Combat Bots Only 2 | . 2 1 Max Kills in Single Turn 2 | 1 2 1 Gunslinging . | . . . Exploded 1 | . 1 . Melee . | . . . Uniques/NPCs Destroyed . | . . . Combat | -11 -10 -9 -------- Run | Yrd Mat Mat Hostile Shots Fired 26 | . 16 10 Missed 10 | . 7 3 Hits 16 | . 9 7 Projectile 16 | . 9 7 Damage Taken 292 | . 145 147 Core 77 | . 27 50 Absorbed by Shields . | . . . Core Remaining (%) 94 | 100 89 . Volleys Fired 55 | 12 39 4 Largest 4 | 2 2 4 Hottest 145 | 70 85 145 Shots Fired 101 | 24 61 16 Gun 88 | 24 48 16 Cannon . | . . . Launcher 13 | . 13 . Special . | . . . Kinetic 42 | 12 22 8 Thermal 42 | 12 26 4 Explosive 13 | . 13 . Electromagnetic 4 | . . 4 Robot Hit Streak 13 | 8 8 13 Robot Miss Streak 3 | 2 3 1 Penetration Max . | . . . Secondary Targets . | . . . Shots Hit Robots 54 | 12 28 14 Core Hits 30 | 4 24 2 Critical Kills 1 | 1 . . Critical Parts Destroyed . | . . . Critical Strikes 5 | 2 2 1 Burn 4 | 1 2 1 Destroy 1 | 1 . . Melee Attacks . | . . . Impact . | . . . Slashing . | . . . Piercing . | . . . Sneak Attacks . | . . . Combat Hostiles . | . . . Follow-up Attacks . | . . . Damage Inflicted 1228 | 139 851 238 Guns 667 | 139 333 195 Cannons . | . . . Explosions 561 | . 518 43 Melee . | . . . Ramming . | . . . Kinetic 273 | 40 123 110 Thermal 402 | 99 210 93 Explosive 518 | . 518 . Electromagnetic 35 | . . 35 Impact . | . . . Slashing . | . . . Piercing . | . . . Highest Corruption . | . . . Average Corruption . | . . . Corruption Purged . | . . . Corruption Blocked . | . . . Overload Shots . | . . . Overflow Damage . | . . . Projectiles . | . . . Explosions . | . . . Melee . | . . . Knockbacks . | . . . Impact . | . . . Kinetic . | . . . Secondary . | . . . Self-Inflicted Damage 69 | . 22 47 Shots 2 | . 1 1 Rammed . | . . . Targets Rammed . | . . . Kicked . | . . . Crushed . | . . . Highest Temperature 329 | 90 72 329 Average Temperature 52 | 41 20 182 Received Heat Transfer 102 | . 66 36 Siege Activations . | . . . Martial Activations . | . . . Shielding Activations . | . . . Robots Disrupted . | . . . Combat Hostiles . | . . . Robots Corrupted . | . . . Combat Hostiles . | . . . Parts Fried . | . . . Impact Corruptions . | . . . Robots Melted . | . . . Combat Hostiles . | . . . Parts Melted . | . . . Heat Transferred 1382 | 370 777 235 Parts Sabotaged . | . . . Parts Stolen . | . . . Parts Stripped . | . . . Power Chain Reactions 1 | . . 1 Alert | -11 -10 -9 ------- Run | Yrd Mat Mat Maximum Alert Level . | . . . Low Security (%) 100 | 100 100 100 Level 1 . | . . . Level 2 . | . . . Level 3 . | . . . Level 4 . | . . . Level 5 . | . . . High Security . | . . . Max Security . | . . . Peak Influence 132 | 10 132 30 Initial 25 | . 3 25 Average 70 | 1 85 13 Influence Increases 466 | 15 414 37 Destroy 0b10 Robot/C 160 | . 140 20 Destroy 0b10 Robot/NC 55 | 15 40 . Destroy Leader 56 | . 46 10 Successful Hack 13 | . 13 . Select Force Hacks 60 | . 60 . Disable Machine 45 | . 45 . Destroy Structure 47 | . 40 7 Lose Combat Pursuer 30 | . 30 . Influence Decreases 446 | 10 358 78 Entered New Map 38 | . 2 36 Time Decay 408 | 10 356 42 Squads Dispatched 3 | . 3 . Investigation 3 | . 3 . Extermination . | . . . Reinforcement . | . . . Assault . | . . . Garrison . | . . . Intercept . | . . . Searches Triggered . | . . . Construction Impeded . | . . . Haulers Reinforced . | . . . Active Scanning Responses . | . . . Cargo Convoy Interrupts . | . . . Stealth | -11 -10 -9 --------- Run | Yrd Mat Mat Distress Signals 1 | . 1 . Communications Jammed . | . . . Distress Signals . | . . . Times Spotted 15 | . 14 1 Peak Tracking Total 3 | . 3 1 Tactical Retreats 2 | . 2 . Traps | -11 -10 -9 ------- Run | Yrd Mat Mat Traps Triggered 1 | . 1 . Indirectly . | . . . Trap Hack Attempts . | . . . Triggered . | . . . Disarmed . | . . . Reprogrammed . | . . . Reused . | . . . Traps Extracted . | . . . Installed . | . . . Triggered . | . . . Machines | -11 -10 -9 ---------- Run | Yrd Mat Mat Machines Disabled 3 | . 3 . Max in Single Turn 1 | . 1 . Machines Repaired . | . . . Machines Dismantled . | . . . Machines Sabotaged . | . . . Overloaded Fab Kills . | . . . Hacking | -11 -10 -9 --------- Run | Yrd Mat Mat Machines Accessed 10 | . 9 1 Terminals 8 | . 7 1 Fabricators . | . . . Repair Stations . | . . . Recycling Units 2 | . 2 . Scanalyzers . | . . . Garrison Access . | . . . Total Hacks 19 | . 17 2 Successful 14 | . 13 1 Failed 5 | . 4 1 Catastrophic 1 | . 1 . Database Lockouts . | . . . Manual 4 | . 4 . Terminals 17 | . 15 2 Fabricators . | . . . Repair Stations . | . . . Recycling Units 2 | . 2 . Scanalyzers . | . . . Garrison Access . | . . . Terminal Hacks 11 | . 10 1 Prototype ID Bank 2 | . 2 . Alert Level 4 | . 4 . Dispatch Records 1 | . . 1 Maintenance Status 1 | . 1 . Recall Investigation 1 | . 1 . Registered Components 1 | . 1 . Zone Layout 1 | . 1 . Fabricator Hacks . | . . . Repair Station Hacks . | . . . Recycling Unit Hacks . | . . . Scanalyzer . | . . . Garrison Access Hacks . | . . . Unauthorized Hacks 3 | . 3 . Terminals 1 | . 1 . Botnet 1 | . 1 . Fabricators . | . . . Repair Stations . | . . . Recycling Units 2 | . 2 . Tunnel 2 | . 2 . Scanalyzers . | . . . Garrison Access . | . . . Data Cores Recovered . | . . . Used . | . . . Hacking Detections 6 | . 5 1 Full Trace Events . | . . . Feedback Events . | . . . Feedback Blocked . | . . . Robot Schematics Acquired . | . . . Robots Built . | . . . Authchips . | . . . Time . | . . . Total Robot Build Rating . | . . . Part Schematics Acquired . | . . . Parts Built . | . . . Authchips . | . . . Time . | . . . Total Part Build Rating . | . . . Parts Repaired . | . . . Time . | . . . Parts Recycled . | . . . Recycled Matter . | . . . Retrieved Matter . | . . . Retrieved Components . | . . . Parts Scanalyzed . | . . . Part Schematics Acquired . | . . . Parts Damaged . | . . . Bothacking | -11 -10 -9 ------------ Run | Yrd Mat Mat Used RIF Installer . | . . . Robots Hacked . | . . . Non-combat . | . . . Combat . | . . . Robot Hacks Applied . | . . . Relay Couplers Released . | . . . Fabnet Peak Effective % . | . . . Robots Rewired . | . . . Allies Hacked . | . . . Hacks Repelled . | . . . Allies | -11 -10 -9 -------- Run | Yrd Mat Mat Total Allies . | . . . Largest Group . | . . . Highest-Rated Group . | . . . Highest-Rated Ally . | . . . Total Orders . | . . . Ally Attacks . | . . . Total Damage . | . . . Kills . | . . . Allies Corrupted . | . . . Allies Melted . | . . . Intel | -11 -10 -9 ------- Run | Yrd Mat Mat Active Infowar (turns) 868 | 4 764 100 Optics 191 | . 91 100 Seismic 677 | 4 673 . Robot Analysis Total . | . . . Derelict Logs Recovered . | . . . Drone Launches . | . . . Drone Recoveries . | . . . Exploration | -11 -10 -9 ------------- Run | Yrd Mat Mat Turns Passed 1006 | 93 813 100 Spaces Moved 782 | 57 669 56 Core 5 | 5 . . Treads 15 | . . 15 Legs . | . . . Wheels 762 | 52 669 41 Hover . | . . . Flight . | . . . Fastest Speed 50 | 50 80 95 Average Speed 97 | 77 97 116 Slowest Speed 250 | 80 105 250 Overloaded Moves . | . . . Propulsion Burnouts . | . . . Robots Hopped . | . . . Potential Cave-ins . | . . . Cave-ins Triggered . | . . . Exploration Rate (%) 33 | 4 90 6 Regions Visited 2 Branch Regions . Pre-discovered Areas 2 | . 2 . Known Exits Taken . | . . . Unknown Exits Taken 2 | 1 1 . Scrap Searched . | . . . Spaces Dug 10 | . 10 . Terrain Destroyed 60 | . 54 6 Melee . | . . . Projectile . | . . . AOE 60 | . 54 6 Terrain Rammed . | . . . Walls Destroyed . | . . . Machines Disabled . | . . . Actions | -11 -10 -9 --------- Run | Yrd Mat Mat Total 937 | 80 773 84 Wait 35 | . 25 10 Move 780 | 56 668 56 Hop . | . . . Pick Up 21 | 5 12 4 Fast Attach 10 | 7 1 2 Attach 2 | . . 2 Detach 1 | . 1 . Swap 15 | . 15 . Drop 18 | . 12 6 Fire 55 | 12 39 4 Melee . | . . . Ram . | . . . Kick . | . . . Crush . | . . . Escape Stasis . | . . . Rewire . | . . . Trap . | . . . Miscellaneous . | . . . Route ------- -11/Scrapyard -10/Materials (discovered 4 exits: *Mat x3 / [*Min]) -9/Materials (discovered 1 exit: [*Sto]) History --------- Turn | Location | Event 13 | -11/Scrapyard | Discovered new exit (range 15) 94 | -11/Scrapyard | Entered Materials 177 | -10/Materials | Discovered new exit (range 13) 279 | -10/Materials | Discovered new exit (range 15) 313 | -10/Materials | Build established: Mutant 595 | -10/Materials | Discovered new exit (range 15) 836 | -10/Materials | Discovered new exit (range 16) 907 | -10/Materials | Entered another Materials area 907 | -9/Materials | Evolved 2 slots: Weapon x2 907 | -9/Materials | Discovered new exit (range 7) 1007 | -9/Materials | Self-destructed Last Messages --------------- 10x Security 5x Surveillance 5x Patrol 6x Transport 00941_ Dropped Assault Rifle. 00942_ Acquired Com. Matter Pod. 00946_ Dropped Lgt. Treads. 00946_ Acquired Arm. Treads. 00948_ Dropped Lgt. Treads. 00948_ Acquired Arm. Treads. 00949_ Dropped Wheel. 00950_ Acquired Arm. Treads. 00957_ Dropped Hcp. Matter Pod. 00958_ Acquired Imp. Terrain Scanner. 00981_ Chain reaction triggered in Imp. Ion Engine. 00984_ Y-45 Defender suffers critical hit (Burn). 00991_ Y-45 Defender destroyed. 00995_ Acquired 49 matter. Map ----- +----------------------------------------------------+ | ??????????????????????????????????????? | | ??????????????????????????????????????? | | ??????????????????????????????????????? | | ??????????????????????????????????????? | | ??????????????????????????????????????? | | ??????????????????????????????????????? | | ??????????????????????????????????????? | | ??????????????????????????????????????? | | ??????????????????????????????????????? | | ??????????????????????????????????????? | | ??????????????????????????????????????? | | ??????????????????????????????????????? | | ??????????????????????????????????????? | | ??????????????????????????????????????? | | ??????????????????????????????????????? | | ??????????????????????????????????????? | | ??????????????????????????????????????? | | ??????????????????????????????????????? | | ??????????????????????????????????????? | | ???#??????????????????????????????????? | | ???# ?????????????????????????????????? | | ???# ####?????????????????????????????? | | ???# #########?????????????????????? | | ?????#; # T #?????????????????????? | | ?????#; ; #?????????????????????? | | ?????#; ;! !!]@ #?????????????????????? | | ??####; ; !!] #????????????????????? | | ??# == # !! ##????????????????????? | | ??# == ##########????????????????????? | | ??#! ! # #????????????????????? | | ??#!![ # """ #????????????????????? | | ??#! + """ #????????????????????? | | ??#!! # """ #????????????????????? | | ??##### # #????????????????????? | | ????# # #????????????????????? | | ????# + "T" #????????????????????? | | ????# # """ #????????????????????? | | ????# # #????????????????????? | | ????# ###########???????????????????? | | ????# #?? ???????????????????? | | ???## ##? """ ???????????????????? | | ???# # """""???????????????????? | | ???# # """""???????????????????? | | ???# < + """""???????????????????? | | ???# # """ #??????????????????? | | ???# # #??????????????????? | | ???## ##? #??????????????????? | | ????# #??#########??????????????????? | | ????# #?????????????????????????????? | | ????# #?????????????????????????????? | +----------------------------------------------------+ Best States ------------- Heat Dissipation 28 Energy Generation 12 Energy Capacity 265 Matter Stores 213 Matter Capacity 300 Sight Range 18 Terrain Scan Density 10 Evasion (%) 44 Recoil Reduction 2 Item Schematics ----------------- None Robot Schematics ------------------ None Fabricated ------------ Nothing Repaired ---------- Nothing Alien Tech Used ----------------- None Achievements -------------- None Challenges ------------ None Game ------ Seed JunkCoolantBeacon Manual? 0 Play Time 00:13:38 Cumulative 47.2 hours Start 2025.05.13 @ 11:43:38 End 2025.05.26 @ 14:01:25 Sessions 5 Manual Loads 0 Difficulty Rogue Special Mode None Game No. 45 Rogue 43 Adventurer 2 Explorer 0 Win Type - Total 0 Types 0/0/0/0/0/0/0/0/0/0 Lore% 39 Gallery% 33 Achievement% 34 Wizard Run 0 Options --------- Layout 1 ASCII 0 Keyboard 0 Movement Mouse Keybinds 0 Fullscreen 1 Font 24/Smallcaps Map View 50x35 Zoom Use 0% Tactical HUD 1 Map Filters NONE Filters NONE Steam 1 RUN: a4eafa82-e295-4284-bd9f-d11e3c5c4f74